lending/lending_fUSD_20260110
["ID","MTS","AMOUNT","RATE_DAILY","PERIOD"]
[401196598,1768037432763,-1186.5106101,0.00015138,2]
[401196599,1768037438048,-1046.42200763,0.00015138,2]
[401196600,1768037438101,-582.98780138,0.00015138,2]
[401196601,1768037438114,-2774.8928558,0.00015138,2]
[401196602,1768037438126,-448.24695361,0.00015138,2]
[401196603,1768037438139,-16535.53256987,0.00015138,2]
[401196604,1768037438157,-593.90672933,0.00015138,2]
[401196605,1768037438265,-10303.17538193,0.00015138,2]
[401196707,1768037440164,-287690.23112035,0.00015138,2]
[401196710,1768037440176,-55902.51029231,0.00015138,2]
[401196720,1768037440277,-10067.64992968,0.00015138,2]
[401196723,1768037440289,-540.25297661,0.00015138,2]
[401196725,1768037440301,-274.61225945,0.00015138,2]
[401196726,1768037440335,-601547.11337601,0.00015138,2]
[401196727,1768037440345,-1001.92487185,0.00015199,2]
[401196729,1768037440354,-6372.1391632,0.00015205,2]
[401196731,1768037440363,-200.0,0.00015238,2]
[401196733,1768037440373,-1000.0,0.00015238,2]
[401196735,1768037440383,-33588.0433,0.00015238,2]
[401196737,1768037440393,-2586.3524,0.00015238,2]
[401196740,1768037440403,-219.08330172,0.00015314,2]
[401196741,1768037440413,-200.0,0.0001539,2]
[401196743,1768037440423,-200.0,0.0001539,2]
[401196745,1768037440432,-200.0,0.0001539,2]
[401196748,1768037440443,-12662.53,0.00015408,2]
[401196750,1768037440454,-3305.15666906,0.0001541,2]
[401196752,1768037440466,-319.51,0.00015431,2]
[401196754,1768037440476,-1000.0,0.00015465,2]
[401196756,1768037440486,-1852.42,0.00015474,2]
[401196758,1768037440496,-2788.62,0.00015541,2]
[401196760,1768037440506,-200.0,0.00015544,2]
[401196762,1768037440516,-200.0,0.00015544,2]
[401196764,1768037440526,-200.0,0.00015544,2]
[401196766,1768037440536,-13172.81,0.00015551,2]
[401196768,1768037440545,-206.16,0.00015598,2]
[401196770,1768037440557,-1000.0,0.00015679,2]
[401196772,1768037440567,-3603.25,0.00015688,2]
[401196774,1768037440576,-200.0,0.000157,2]
[401196776,1768037440586,-200.0,0.000157,2]
[401196778,1768037440595,-200.0,0.000157,2]
[401196779,1768037440606,-3305.15666906,0.00015721,2]
[401196780,1768037440616,-1000.0,0.00015744,2]
[401196781,1768037440626,-58263.9580178,0.0001575,2]
[401196782,1768037440636,-1000.0,0.00015844,2]
[401196783,1768037440648,-200.0,0.00015857,2]
[401196784,1768037440658,-200.0,0.00015857,2]
[401196785,1768037440669,-200.0,0.00015857,2]
[401196786,1768037440680,-151.0,0.00015871,2]
[401196787,1768037440691,-151.0,0.00015871,2]
[401196788,1768037440702,-151.0,0.00015873,2]
[401196789,1768037440712,-151.0,0.00015873,2]
[401196790,1768037440721,-151.0,0.00015892,2]
[401196791,1768037440730,-151.0,0.00015892,2]
[401196792,1768037440740,-766.11378665,0.0001599,2]
[401196793,1768037440751,-333050.90575876,0.00016,4]
[401196794,1768037440761,-3305.15666906,0.00016033,2]
[401196795,1768037440771,-150.8882723,0.0001609,2]
[401196796,1768037440781,-150.0,0.00016164,2]
[401196797,1768037440791,-199.74900552,0.00016164,2]
[401196798,1768037440800,-500.0,0.00016164,2]
[401196799,1768037440810,-153.19668317,0.00016164,2]
[401196800,1768037440820,-150.0,0.00016164,2]
[401196801,1768037440830,-150.0,0.00016164,2]
[401196802,1768037440840,-7486.96,0.0001618,2]
[401196803,1768037440849,-150.0,0.000162,2]
[401196804,1768037440859,-189.54348929,0.000162,2]
[401196805,1768037440868,-255.68743637,0.000162,2]
[401196806,1768037440878,-150.0,0.000162,2]
[401196807,1768037440888,-178.71892515,0.000162,2]
[401196808,1768037440899,-150.0,0.000162,2]
[401196809,1768037440909,-216.87423394,0.000162,2]
[401196810,1768037440919,-150.0,0.000162,2]
[401196811,1768037440928,-150.0,0.000162,2]
[401196812,1768037440938,-150.0,0.000162,2]
[401196813,1768037440948,-229.31905987,0.000162,2]
[401196814,1768037440959,-150.0,0.000162,2]
[401196815,1768037440970,-189.54348929,0.00016218,2]
[401196816,1768037440980,-255.68743637,0.00016218,2]
[401196817,1768037440990,-178.71892515,0.00016218,2]
[401196818,1768037440999,-216.87423394,0.00016218,2]
[401196819,1768037441009,-229.31905987,0.00016218,2]
[401196820,1768037441018,-500.0,0.00016219,2]
[401196821,1768037441027,-150.0,0.00016219,2]
[401196822,1768037441037,-1000.0,0.00016223,2]
[401196823,1768037441047,-189.54348929,0.00016236,2]
[401196824,1768037441057,-255.68743637,0.00016236,2]
[401196825,1768037441067,-178.71892515,0.00016236,2]
[401196826,1768037441076,-216.87423394,0.00016236,2]
[401196827,1768037441086,-229.31905987,0.00016236,2]
[401196828,1768037441096,-1000.0,0.00016236,2]
[401196829,1768037441106,-1000.0,0.00016236,2]
[401196830,1768037441115,-1000.0,0.00016236,2]
[401196831,1768037441125,-1000.0,0.00016236,2]
[401196832,1768037441135,-1000.0,0.00016236,2]
[401196833,1768037441144,-1000.0,0.00016236,2]
[401196834,1768037441154,-1000.0,0.00016236,2]
[401196835,1768037441164,-1000.0,0.00016236,2]
[401196836,1768037441174,-1000.0,0.00016236,2]
[401196837,1768037441184,-1000.0,0.00016236,2]
[401196838,1768037441193,-1000.0,0.00016236,2]
[401196839,1768037441204,-1000.0,0.00016236,2]
[401196840,1768037441214,-1000.0,0.00016236,2]
[401196841,1768037441223,-1000.0,0.00016236,2]
[401196842,1768037441233,-1000.0,0.00016236,2]
[401196843,1768037441242,-1000.0,0.00016236,2]
[401196844,1768037441252,-1000.0,0.00016236,2]
[401196845,1768037441262,-1000.0,0.00016236,2]
[401196846,1768037441274,-1000.0,0.00016236,2]
[401196847,1768037441284,-1000.0,0.00016236,2]
[401196848,1768037441293,-1000.0,0.00016236,2]
[401196849,1768037441303,-1000.0,0.00016236,2]
[401196850,1768037441314,-1000.0,0.00016236,2]
[401196851,1768037441323,-1000.0,0.00016236,2]
[401196852,1768037441333,-1000.0,0.00016236,2]
[401196853,1768037441342,-1000.0,0.00016236,2]
[401196854,1768037441351,-1000.0,0.00016236,2]
[401196855,1768037441361,-1000.0,0.00016236,2]
[401196856,1768037441371,-1000.0,0.00016236,2]
[401196857,1768037441381,-1000.0,0.00016236,2]
[401196858,1768037441391,-1000.0,0.00016236,2]
[401196859,1768037441401,-1000.0,0.00016236,2]
[401196860,1768037441411,-1000.0,0.00016236,2]
[401196861,1768037441420,-1000.0,0.00016236,2]
[401196862,1768037441431,-1000.0,0.00016236,2]
[401196863,1768037441441,-1000.0,0.00016236,2]
[401196864,1768037441451,-1000.0,0.00016236,2]
[401196865,1768037441461,-1000.0,0.00016236,2]
[401196866,1768037441473,-1000.0,0.00016236,2]
[401196867,1768037441483,-1000.0,0.00016236,2]
[401196868,1768037441494,-1000.0,0.00016236,2]
[401196869,1768037441504,-1000.0,0.00016236,2]
[401196870,1768037441513,-1000.0,0.00016236,2]
[401196871,1768037441523,-1000.0,0.00016236,2]
[401196872,1768037441533,-1000.0,0.00016236,2]
[401196873,1768037441542,-1000.0,0.00016236,2]
[401196874,1768037441553,-1000.0,0.00016236,2]
[401196875,1768037441564,-1000.0,0.00016236,2]
[401196876,1768037441575,-1000.0,0.00016236,2]
[401196877,1768037441585,-1000.0,0.00016236,2]
[401196878,1768037441594,-1000.0,0.00016236,2]
[401196879,1768037441603,-1000.0,0.00016236,2]
[401196880,1768037441612,-1000.0,0.00016236,2]
[401196881,1768037441622,-1000.0,0.00016236,2]
[401196882,1768037441631,-1000.0,0.00016236,2]
[401196883,1768037441641,-1000.0,0.00016236,2]
[401196884,1768037441651,-1000.0,0.00016236,2]
[401196885,1768037441662,-775.0,0.00016236,2]
[401196886,1768037441674,-150.0,0.00016241,2]
[401196887,1768037441685,-499.15193806,0.00016244,2]
[401196888,1768037441695,-189.54348929,0.00016255,2]
[401196889,1768037441705,-255.68743637,0.00016255,2]
[401196890,1768037441715,-178.71892515,0.00016255,2]
[401196891,1768037441725,-216.87423394,0.00016255,2]
[401196892,1768037441734,-229.31905987,0.00016255,2]
[401196893,1768037441743,-150.0,0.00016267,2]
[401196894,1768037441753,-189.54348929,0.00016273,2]
[401196895,1768037441763,-255.68743637,0.00016273,2]
[401196896,1768037441773,-178.71892515,0.00016273,2]
[401196897,1768037441783,-216.87423394,0.00016273,2]
[401196898,1768037441793,-229.31905987,0.00016273,2]
[401196899,1768037441804,-150.0,0.00016274,2]
[401196900,1768037441815,-150.0,0.00016282,2]
[401196901,1768037441827,-150.0,0.00016286,2]
[401196902,1768037441837,-150.0,0.00016286,2]
[401196903,1768037441847,-500.0,0.00016286,2]
[401196904,1768037441859,-150.0,0.00016286,2]
[401196905,1768037441869,-500.0,0.00016286,2]
[401196906,1768037441879,-500.0,0.00016286,2]
[401196907,1768037441890,-500.0,0.00016286,2]
[401196908,1768037441900,-150.0,0.00016286,2]
[401196909,1768037441911,-150.0,0.00016286,2]
[401196910,1768037441922,-150.0,0.00016286,2]
[401196911,1768037441932,-189.54348929,0.00016291,2]
[401196912,1768037441942,-255.68743637,0.00016291,2]
[401196913,1768037441952,-178.71892515,0.00016291,2]
[401196914,1768037441963,-216.87423394,0.00016291,2]
[401196915,1768037441973,-229.31905987,0.00016291,2]
[401196916,1768037441983,-1000.0,0.00016301,2]
[401196917,1768037441993,-189.54348929,0.00016309,2]
[401196918,1768037442003,-255.68743637,0.00016309,2]
[401196919,1768037442013,-178.71892515,0.00016309,2]
[401196920,1768037442023,-216.87423394,0.00016309,2]
[401196921,1768037442034,-229.31905987,0.00016309,2]
[401196922,1768037442046,-150.0,0.00016312,2]
[401196923,1768037442056,-150.0,0.00016323,2]
[401196924,1768037442066,-189.54348929,0.00016327,2]
[401196925,1768037442076,-255.68743637,0.00016327,2]
[401196926,1768037442086,-178.71892515,0.00016327,2]
[401196927,1768037442096,-216.87423394,0.00016327,2]
[401196928,1768037442105,-229.31905987,0.00016327,2]
[401196929,1768037442115,-150.0,0.00016328,2]
[401196930,1768037442125,-150.0,0.00016333,2]
[401196931,1768037442134,-222.12982038,0.00016341,2]
[401196932,1768037442143,-150.0,0.00016341,2]
[401196933,1768037442153,-500.0,0.00016341,2]
[401196934,1768037442163,-150.0,0.00016341,2]
[401196935,1768037442173,-500.0,0.00016341,2]
[401196936,1768037442183,-500.0,0.00016341,2]
[401196937,1768037442193,-500.0,0.00016341,2]
[401196938,1768037442204,-150.0,0.00016341,2]
[401196939,1768037442214,-150.0,0.00016341,2]
[401196940,1768037442224,-150.0,0.00016341,2]
[401196941,1768037442234,-189.54348929,0.00016345,2]
[401196942,1768037442244,-255.68743637,0.00016345,2]
[401196943,1768037442255,-178.71892515,0.00016345,2]
[401196944,1768037442271,-216.87423394,0.00016345,2]
[401196945,1768037442287,-229.31905987,0.00016345,2]
[401196946,1768037442298,-1000.0,0.00016353,2]
[401196947,1768037442310,-189.54348929,0.00016364,2]
[401196948,1768037442324,-255.68743637,0.00016364,2]
[401196949,1768037442342,-178.71892515,0.00016364,2]
[401196950,1768037442354,-216.87423394,0.00016364,2]
[401196951,1768037442364,-150.0,0.00016364,2]
[401196952,1768037442374,-229.31905987,0.00016364,2]
[401196953,1768037442383,-189.54348929,0.00016382,2]
[401196954,1768037442392,-255.68743637,0.00016382,2]
[401196955,1768037442402,-178.71892515,0.00016382,2]
[401196956,1768037442412,-216.87423394,0.00016382,2]
[401196957,1768037442421,-229.31905987,0.00016382,2]
[401196958,1768037442431,-150.0,0.00016383,2]
[401196959,1768037442440,-150.0,0.00016396,2]
[401196960,1768037442450,-500.0,0.00016396,2]
[401196961,1768037442460,-500.0,0.00016396,2]
[401196962,1768037442471,-500.0,0.00016396,2]
[401196963,1768037442482,-500.0,0.00016396,2]
[401196964,1768037442493,-150.0,0.00016396,2]
[401196965,1768037442504,-150.0,0.00016396,2]
[401196966,1768037442514,-150.0,0.00016398,2]
[401196967,1768037442524,-152.08512416,0.00016398,2]
[401196968,1768037442534,-189.54348929,0.000164,2]
[401196969,1768037442544,-255.68743637,0.000164,2]
[401196970,1768037442554,-178.71892515,0.000164,2]
[401196971,1768037442564,-216.87423394,0.000164,2]
[401196972,1768037442573,-150.0,0.000164,2]
[401196973,1768037442583,-150.0,0.000164,2]
[401196974,1768037442594,-229.31905987,0.000164,2]
[401196975,1768037442604,-834.0,0.000164,2]
[401196976,1768037442614,-850.0,0.000164,2]
[401196977,1768037442623,-150.0,0.00016405,2]
[401196978,1768037442634,-189.54348929,0.00016418,2]
[401196979,1768037442644,-255.68743637,0.00016418,2]
[401196980,1768037442653,-178.71892515,0.00016418,2]
[401196981,1768037442663,-216.87423394,0.00016418,2]
[401196982,1768037442674,-229.31905987,0.00016418,2]
[401196983,1768037442685,-150.0,0.00016425,2]
[401196984,1768037442696,-189.54348929,0.00016436,2]
[401196985,1768037442706,-255.68743637,0.00016436,2]
[401196986,1768037442716,-178.71892515,0.00016436,2]
[401196987,1768037442727,-216.87423394,0.00016436,2]
[401196988,1768037442736,-229.31905987,0.00016436,2]
[401196989,1768037442747,-250.0,0.00016438,2]
[401196990,1768037442757,-500.0,0.00016438,2]
[401196991,1768037442767,-500.0,0.00016438,2]
[401196992,1768037442776,-500.0,0.00016438,2]
[401196993,1768037442786,-500.0,0.00016438,2]
[401196994,1768037442795,-500.0,0.00016438,2]
[401196995,1768037442804,-500.0,0.00016438,2]
[401196996,1768037442814,-500.0,0.00016438,2]
[401196997,1768037442823,-500.0,0.00016438,2]
[401196998,1768037442833,-500.0,0.00016438,2]
[401196999,1768037442845,-500.0,0.00016438,2]
[401197000,1768037442855,-500.0,0.00016438,2]
[401197001,1768037442864,-500.0,0.00016438,2]
[401197002,1768037442873,-155.90809256,0.00016438,2]
[401197003,1768037442883,-500.0,0.00016438,2]
[401197005,1768037442892,-500.0,0.00016438,2]
[401197006,1768037442903,-500.0,0.00016438,2]
[401197007,1768037442913,-500.0,0.00016438,2]
[401197008,1768037442923,-500.0,0.00016438,2]
[401197009,1768037442933,-500.0,0.00016438,2]
[401197010,1768037442943,-500.0,0.00016438,2]
[401197011,1768037442953,-500.0,0.00016438,2]
[401197012,1768037442963,-500.0,0.00016438,2]
[401197013,1768037442973,-600.0,0.00016438,2]
[401197014,1768037442983,-567.0,0.00016438,2]
[401197015,1768037442993,-150.0,0.00016445,2]
[401197016,1768037443002,-500.0,0.0001645,2]
[401197017,1768037443011,-500.0,0.0001645,2]
[401197018,1768037443022,-200.0,0.0001645,2]
[401197019,1768037443032,-500.0,0.0001645,2]
[401197020,1768037443042,-500.0,0.0001645,2]
[401197021,1768037443052,-150.0,0.00016453,2]
[401197022,1768037443062,-189.54348929,0.00016455,2]
[401197023,1768037443072,-255.68743637,0.00016455,2]
[401197024,1768037443082,-178.71892515,0.00016455,2]
[401197025,1768037443092,-216.87423394,0.00016455,2]
[401197026,1768037443102,-229.31905987,0.00016455,2]
[401197027,1768037443112,-150.0,0.00016467,2]
[401197028,1768037443122,-1000.0,0.00016472,2]
[401197029,1768037443132,-189.54348929,0.00016473,2]
[401197030,1768037443142,-255.68743637,0.00016473,2]
[401197031,1768037443152,-178.71892515,0.00016473,2]
[401197032,1768037443162,-216.87423394,0.00016473,2]
[401197033,1768037443173,-229.31905987,0.00016473,2]
[401197034,1768037443183,-1000.0,0.00016485,2]
[401197035,1768037443193,-150.0,0.00016486,2]
[401197036,1768037443203,-189.54348929,0.00016491,2]
[401197037,1768037443214,-255.68743637,0.00016491,2]
[401197038,1768037443223,-178.71892515,0.00016491,2]
[401197039,1768037443234,-216.87423394,0.00016491,2]
[401197040,1768037443244,-229.31905987,0.00016491,2]
[401197041,1768037443254,-150.0,0.000165,2]
[401197042,1768037443264,-500.0,0.00016505,2]
[401197043,1768037443279,-500.0,0.00016505,2]
[401197044,1768037443289,-161.34563467,0.00016505,2]
[401197045,1768037443299,-500.0,0.00016505,2]
[401197046,1768037443309,-150.0,0.00016508,2]
[401197047,1768037443319,-189.54348929,0.00016509,2]
[401197048,1768037443331,-255.68743637,0.00016509,2]
[401197049,1768037443348,-178.71892515,0.00016509,2]
[401197050,1768037443359,-216.87423394,0.00016509,2]
[401197051,1768037443369,-229.31905987,0.00016509,2]
[401197052,1768037443380,-189.54348929,0.00016527,2]
[401197053,1768037443390,-255.68743637,0.00016527,2]
[401197054,1768037443401,-178.71892515,0.00016527,2]
[401197055,1768037443411,-216.87423394,0.00016527,2]
[401197056,1768037443423,-150.0,0.00016527,2]
[401197057,1768037443434,-229.31905987,0.00016527,2]
[401197058,1768037443444,-150.0,0.00016533,2]
[401197059,1768037443454,-150.0,0.00016537,2]
[401197060,1768037443464,-189.54348929,0.00016545,2]
[401197061,1768037443475,-255.68743637,0.00016545,2]
[401197062,1768037443486,-178.71892515,0.00016545,2]
[401197063,1768037443496,-216.87423394,0.00016545,2]
[401197064,1768037443506,-229.31905987,0.00016545,2]
[401197065,1768037443515,-500.0,0.0001656,2]
[401197066,1768037443525,-500.0,0.0001656,2]
[401197067,1768037443534,-500.0,0.0001656,2]
[401197068,1768037443544,-150.0,0.0001656,2]
[401197069,1768037443554,-1000.0,0.0001656,2]
[401197070,1768037443563,-189.54348929,0.00016564,2]
[401197071,1768037443572,-255.68743637,0.00016564,2]
[401197072,1768037443591,-178.71892515,0.00016564,2]
[401197073,1768037443601,-216.87423394,0.00016564,2]
[401197074,1768037443611,-229.31905987,0.00016564,2]
[401197075,1768037443621,-150.0,0.00016568,2]
[401197076,1768037443630,-189.54348929,0.00016582,2]
[401197077,1768037443640,-255.68743637,0.00016582,2]
[401197078,1768037443650,-178.71892515,0.00016582,2]
[401197079,1768037443659,-216.87423394,0.00016582,2]
[401197080,1768037443669,-229.31905987,0.00016582,2]
[401197081,1768037443679,-189.54348929,0.000166,2]
[401197082,1768037443689,-255.68743637,0.000166,2]
[401197083,1768037443699,-178.71892515,0.000166,2]
[401197084,1768037443710,-216.87423394,0.000166,2]
[401197085,1768037443719,-150.0,0.000166,2]
[401197086,1768037443729,-150.0,0.000166,2]
[401197087,1768037443739,-229.31905987,0.000166,2]
[401197088,1768037443748,-150.0,0.00016609,2]
[401197089,1768037444006,-500.0,0.00016615,2]
[401197090,1768037444017,-206.0,0.00016615,2]
[401197091,1768037444027,-300.0,0.00016615,2]
[401197092,1768037444038,-189.54348929,0.00016618,2]
[401197093,1768037444048,-255.68743637,0.00016618,2]
[401197094,1768037444058,-178.71892515,0.00016618,2]
[401197095,1768037444069,-216.87423394,0.00016618,2]
[401197096,1768037444079,-229.31905987,0.00016618,2]
[401197097,1768037444088,-171.19946993,0.00016624,2]
[401197098,1768037444098,-189.54348929,0.00016636,2]
[401197099,1768037444108,-255.68743637,0.00016636,2]
[401197100,1768037444118,-178.71892515,0.00016636,2]
[401197101,1768037444128,-216.87423394,0.00016636,2]
[401197102,1768037444139,-229.31905987,0.00016636,2]
[401197103,1768037444149,-1680.0,0.00016648,2]
[401197104,1768037444159,-150.0,0.0001665,2]
[401197105,1768037444170,-150.0,0.0001665,2]
[401197106,1768037444179,-189.54348929,0.00016655,2]
[401197107,1768037444189,-255.68743637,0.00016655,2]
[401197108,1768037444199,-178.71892515,0.00016655,2]
[401197109,1768037444210,-216.87423394,0.00016655,2]
[401197110,1768037444220,-229.31905987,0.00016655,2]
[401197111,1768037444230,-1000.0,0.00016658,2]
[401197112,1768037444241,-150.0,0.00016667,2]
[401197113,1768037444251,-500.0,0.0001667,2]
[401197114,1768037444260,-189.54348929,0.00016673,2]
[401197115,1768037444270,-255.68743637,0.00016673,2]
[401197116,1768037444281,-178.71892515,0.00016673,2]
[401197117,1768037444292,-216.87423394,0.00016673,2]
[401197118,1768037444301,-229.31905987,0.00016673,2]
[401197119,1768037444311,-189.54348929,0.00016691,2]
[401197120,1768037444320,-255.68743637,0.00016691,2]
[401197121,1768037444330,-178.71892515,0.00016691,2]
[401197122,1768037444341,-216.87423394,0.00016691,2]
[401197123,1768037444351,-150.0,0.00016691,2]
[401197124,1768037444360,-229.31905987,0.00016691,2]
[401197125,1768037444371,-189.54348929,0.00016709,2]
[401197126,1768037444383,-255.68743637,0.00016709,2]
[401197127,1768037444395,-178.71892515,0.00016709,2]
[401197128,1768037444405,-216.87423394,0.00016709,2]
[401197129,1768037444415,-229.31905987,0.00016709,2]
[401197130,1768037444425,-160.0,0.00016712,2]
[401197131,1768037444435,-276.645,0.00016723,2]
[401197132,1768037444446,-290.47234924,0.00016724,2]
[401197133,1768037444456,-151.0,0.00016724,2]
[401197134,1768037444466,-8260.13072239,0.00016724,2]
[401197135,1768037444476,-1000.0,0.00016724,2]
[401197136,1768037444486,-1000.0,0.00016724,2]
[401197137,1768037444496,-1000.0,0.00016724,2]
[401197138,1768037444505,-1000.0,0.00016724,2]
[401197139,1768037444515,-724.98153853,0.00016724,2]
[401197140,1768037444525,-1000.0,0.00016724,2]
[401197141,1768037444535,-250.0,0.00016724,2]
[401197142,1768037444545,-1000.0,0.00016724,2]
[401197143,1768037444554,-250.0,0.00016724,2]
[401197144,1768037444564,-250.0,0.00016724,2]
[401197145,1768037444573,-1000.0,0.00016724,2]
[401197146,1768037444583,-268.55828979,0.00016724,2]
[401197147,1768037444593,-250.0,0.00016724,2]
[401197148,1768037444603,-1000.0,0.00016724,2]
[401197149,1768037444613,-265.93998841,0.00016724,2]
[401197150,1768037444623,-1000.0,0.00016724,2]
[401197151,1768037444633,-1000.0,0.00016724,2]
[401197152,1768037444643,-250.0,0.00016724,2]
[401197153,1768037444653,-1000.0,0.00016724,2]
[401197154,1768037444663,-250.0,0.00016724,2]
[401197155,1768037444674,-1000.0,0.00016724,2]
[401197156,1768037444683,-998.0,0.00016724,2]
[401197157,1768037444693,-262.27490419,0.00016724,2]
[401197158,1768037444702,-1000.0,0.00016724,2]
[401197159,1768037444712,-1000.0,0.00016724,2]
[401197160,1768037444722,-1000.0,0.00016724,2]
[401197161,1768037444732,-500.0,0.00016724,2]
[401197162,1768037444742,-500.0,0.00016724,2]
[401197163,1768037444753,-500.0,0.00016724,2]
[401197164,1768037444763,-181.08010149,0.00016724,2]
[401197165,1768037444773,-181.08010149,0.00016724,2]
[401197166,1768037444783,-151.0,0.00016724,2]
[401197167,1768037444793,-500.0,0.00016724,2]
[401197168,1768037444803,-500.0,0.00016724,2]
[401197169,1768037444814,-500.0,0.00016724,2]
[401197170,1768037444825,-500.0,0.00016724,2]
[401197171,1768037444835,-151.0,0.00016724,2]
[401197172,1768037444845,-500.0,0.00016724,2]
[401197173,1768037444854,-151.0,0.00016724,2]
[401197174,1768037444864,-500.0,0.00016724,2]
[401197175,1768037444875,-157.48868544,0.00016724,2]
[401197176,1768037444886,-500.0,0.00016724,2]
[401197177,1768037444896,-500.0,0.00016724,2]
[401197178,1768037444907,-500.0,0.00016724,2]
[401197179,1768037444917,-500.0,0.00016724,2]
[401197180,1768037444927,-250.0,0.00016724,2]
[401197181,1768037444937,-500.0,0.00016724,2]
[401197182,1768037444946,-250.0,0.00016724,2]
[401197183,1768037444956,-2000.0,0.00016724,2]
[401197184,1768037444965,-500.0,0.00016724,2]
[401197185,1768037444975,-267.33747462,0.00016724,2]
[401197186,1768037444986,-2000.0,0.00016724,2]
[401197187,1768037444997,-250.0,0.00016724,2]
[401197188,1768037445008,-2000.0,0.00016724,2]
[401197189,1768037445018,-250.0,0.00016724,2]
[401197190,1768037445028,-2000.0,0.00016724,2]
[401197191,1768037445038,-262.0209475,0.00016724,2]
[401197192,1768037445048,-2000.0,0.00016724,2]
[401197193,1768037445058,-496.47127164,0.00016724,2]
[401197194,1768037445068,-2000.0,0.00016724,2]
[401197195,1768037445078,-2000.0,0.00016724,2]
[401197196,1768037445088,-2000.0,0.00016724,2]
[401197197,1768037445099,-2000.0,0.00016724,2]
[401197198,1768037445109,-322.6107,0.00016724,2]
[401197199,1768037445120,-2000.0,0.00016724,2]
[401197200,1768037445131,-2000.0,0.00016724,2]
[401197201,1768037445141,-525.94323817,0.00016724,2]
[401197202,1768037445152,-623.58710448,0.00016724,2]
[401197203,1768037445162,-187.78006525,0.00016724,2]
[401197204,1768037445173,-500.0,0.00016724,2]
[401197205,1768037445184,-189.54348929,0.00016727,2]
[401197206,1768037445196,-255.68743637,0.00016727,2]
[401197207,1768037445207,-178.71892515,0.00016727,2]
[401197208,1768037445219,-216.87423394,0.00016727,2]
[401197209,1768037445229,-229.31905987,0.00016727,2]
[401197210,1768037445241,-150.0,0.00016732,2]
[401197211,1768037445253,-150.0,0.00016733,2]
[401197212,1768037445264,-189.54348929,0.00016745,2]
[401197213,1768037445280,-255.68743637,0.00016745,2]
[401197214,1768037445291,-178.71892515,0.00016745,2]
[401197215,1768037445302,-216.87423394,0.00016745,2]
[401197216,1768037445312,-229.31905987,0.00016745,2]
[401197217,1768037445323,-250.0,0.00016762,2]
[401197218,1768037445333,-600.0,0.00016762,2]
[401197219,1768037445343,-250.0,0.00016762,2]
[401197220,1768037445352,-204.30929403,0.00016762,2]
[401197221,1768037445362,-250.0,0.00016762,2]
[401197222,1768037445373,-150.0,0.00016762,2]
[401197223,1768037445382,-189.54348929,0.00016764,2]
[401197224,1768037445392,-255.68743637,0.00016764,2]
[401197225,1768037445402,-178.71892515,0.00016764,2]
[401197226,1768037445412,-216.87423394,0.00016764,2]
[401197227,1768037445422,-229.31905987,0.00016764,2]
[401197229,1768037445432,-1000.0,0.00016764,2]
[401197231,1768037445443,-150.0,0.00016773,2]
[401197233,1768037445453,-281.2750509,0.00016779,2]
[401197234,1768037445463,-8565.75555911,0.00016779,2]
[401197235,1768037445474,-189.54348929,0.00016782,2]
[401197236,1768037445485,-255.68743637,0.00016782,2]
[401197237,1768037445495,-178.71892515,0.00016782,2]
[401197238,1768037445509,-216.87423394,0.00016782,2]
[401197239,1768037445521,-229.31905987,0.00016782,2]
[401197240,1768037445531,-4304.92943194,0.000168,2]
[401197241,1768037445544,-189.54348929,0.000168,2]
[401197242,1768037445562,-255.68743637,0.000168,2]